bitfinex/quotes_SOLUSD_20250701
["timestamp","ask_amount","ask_price","bid_price","bid_amount"]
[1751382051929,0.1,147.46,147.45,28.37177318]
[1751382052524,0.1,147.46,147.45,20.30924886]
[1751382052728,0.1,147.46,147.45,18.64964886]
[1751382052958,0.1,147.46,147.44,9.29563961]
[1751382053826,0.1,147.46,147.43,9.29563961]
[1751382054031,0.1,147.46,147.42,27.94528847]
[1751382054032,9.39563961,147.46,147.42,27.94528847]
[1751382054459,9.39563961,147.46,147.41,0.2]
[1751382054753,9.39563961,147.46,147.42,9.29563961]
[1751382055351,0.1,147.46,147.43,9.29563961]
[1751382056653,0.1,147.46,147.44,18.64964886]
[1751382057650,0.1,147.46,147.42,9.29563961]
[1751382057952,0.1,147.46,147.44,9.29563961]
[1751382059272,9.29563961,147.45,147.41,0.2]
[1751382059455,9.29563961,147.44,147.41,0.2]
[1751382060435,11.2,147.45,147.41,0.2]
[1751382060436,20.49563961,147.45,147.41,9.49563961]
[1751382060834,9.29563961,147.44,147.41,0.2]
[1751382061350,20.49563961,147.45,147.41,0.2]
[1751382061764,9.29563961,147.42,147.41,0.2]
[1751382062130,11.2,147.43,147.41,0.2]
[1751382062344,11.2,147.43,147.41,9.49563961]
[1751382062858,0.1,147.46,147.42,9.29563961]
[1751382063063,0.1,147.46,147.43,9.29563961]
[1751382063264,0.1,147.46,147.44,9.29563961]
[1751382064061,0.1,147.46,147.43,9.29563961]
[1751382064359,9.39563961,147.46,147.42,9.29563961]
[1751382064748,9.29563961,147.45,147.41,0.2]
[1751382064948,11.2,147.45,147.41,0.2]
[1751382065161,11.2,147.45,147.41,9.49563961]
[1751382065465,11.2,147.45,147.41,0.2]
[1751382065675,9.29563961,147.43,147.41,0.2]
[1751382065858,9.29563961,147.44,147.41,0.2]
[1751382066159,20.49563961,147.45,147.41,0.2]
[1751382066459,9.29563961,147.44,147.41,0.2]
[1751382067356,20.49563961,147.45,147.41,0.2]
[1751382067553,0.1,147.46,147.44,9.29563961]
[1751382067762,0.1,147.46,147.45,9.29563961]
[1751382069556,0.1,147.46,147.43,18.64964886]
[1751382069557,0.1,147.46,147.44,9.29563961]
[1751382071158,0.1,147.46,147.43,18.64964886]
[1751382071355,0.1,147.46,147.43,9.29563961]
[1751382071558,11.3,147.46,147.42,27.94528847]
[1751382071766,11.3,147.46,147.44,9.29563961]
[1751382072270,20.59563961,147.46,147.42,9.29563961]
[1751382073068,11.3,147.46,147.42,9.29563961]
[1751382073556,9.39563961,147.46,147.42,9.29563961]
[1751382073763,9.39563961,147.46,147.41,9.49563961]
[1751382073964,11.2,147.45,147.41,9.49563961]
[1751382074157,11.2,147.45,147.42,9.29563961]
[1751382074877,11.2,147.45,147.41,9.49563961]
[1751382075173,9.29563961,147.44,147.41,0.2]
[1751382075761,20.49563961,147.45,147.41,0.2]
[1751382076484,20.49563961,147.45,147.41,9.49563961]
[1751382076685,11.2,147.45,147.44,27.94528847]
[1751382076888,0.1,147.46,147.45,20.31454886]
[1751382077182,0.1,147.46,147.45,29.61018847]
[1751382077957,0.1,147.5,147.45,29.61018847]
[1751382078152,0.1,147.5,147.49,27.94528847]
[1751382078679,0.1,147.5,147.49,18.79181043]
[1751382078982,0.1,147.5,147.48,18.64964886]
[1751382079184,0.1,147.5,147.48,9.29563961]
[1751382079571,0.1,147.5,147.48,18.64964886]
[1751382079887,9.39563961,147.5,147.47,18.64964886]
[1751382080399,9.39563961,147.5,147.46,9.29563961]
[1751382080553,9.39563961,147.5,147.46,18.64964886]
[1751382080554,9.29563961,147.49,147.46,18.64964886]
[1751382080975,9.39563961,147.5,147.46,18.64964886]
[1751382081278,9.39563961,147.5,147.46,27.94528847]
[1751382081676,9.39563961,147.5,147.46,18.64964886]
[1751382082075,9.39563961,147.5,147.46,27.94528847]
[1751382082278,0.1,147.5,147.46,27.94528847]
[1751382082493,0.1,147.5,147.47,9.29563961]
[1751382085488,0.1,147.5,147.47,9.43780118]
[1751382085674,0.1,147.5,147.48,9.29563961]
[1751382085981,0.1,147.5,147.45,26.0]
[1751382085982,0.1,147.5,147.49,28.37177318]
[1751382087778,0.1,147.5,147.49,33.8211469]
[1751382089272,0.1,147.52,147.51,44.64964886]
[1751382089474,0.1,147.52,147.51,63.66741279]
[1751382089671,0.1,147.52,147.51,66.42741279]
[1751382090387,1.5380331,147.54,147.53,54.37177318]
[1751382091763,1.5380331,147.54,147.53,55.04960141]
[1751382091965,1.5380331,147.54,147.53,29.04960141]
[1751382092164,0.2,147.55,147.54,19.07613357]
[1751382092364,0.2,147.55,147.54,57.13177318]
[1751382093172,0.2,147.55,147.54,57.80955547]
[1751382093373,0.2,147.55,147.54,61.27569337]
[1751382093574,6.507,147.66,147.62,18.64964886]
[1751382093771,6.507,147.66,147.64,18.64964886]
[1751382093979,15.80263961,147.66,147.62,18.64964886]
[1751382094195,9.29563961,147.65,147.62,18.64964886]
[1751382094499,9.29563961,147.63,147.59,0.14216157]
[1751382094799,9.29563961,147.63,147.59,9.43780118]
[1751382094976,6.507,147.66,147.61,18.64964886]
[1751382095175,9.29563961,147.64,147.61,18.64964886]
[1751382095394,6.507,147.66,147.61,18.64964886]
[1751382095609,9.29563961,147.65,147.61,27.94528847]
[1751382095772,6.507,147.66,147.6,26.0]
[1751382096105,15.80263961,147.66,147.63,18.64964886]
[1751382096822,15.80263961,147.66,147.61,18.64964886]
[1751382097095,15.80263961,147.66,147.6,26.14216157]
[1751382097096,15.80263961,147.66,147.63,18.64964886]
[1751382097676,9.29563961,147.65,147.61,18.64964886]
[1751382097881,8.29563961,147.65,147.61,18.64964886]
[1751382098199,9.29563961,147.67,147.63,27.94528847]
[1751382098905,1.5683,147.68,147.63,18.64964886]
[1751382099407,32.2547,147.7,147.6,26.14216157]
[1751382099408,6.2547,147.7,147.67,9.29563961]
[1751382099569,6.2547,147.7,147.64,0.14216157]
[1751382099570,15.55033961,147.7,147.65,18.64964886]
[1751382099773,15.55033961,147.7,147.65,27.94528847]
[1751382099774,9.29563961,147.69,147.65,27.94528847]
[1751382099972,6.2547,147.7,147.65,27.94528847]
[1751382099973,9.29563961,147.68,147.65,18.64964886]
[1751382100292,7.6236,147.77,147.69,18.64964886]
[1751382100596,9.29563961,147.73,147.69,27.94528847]
[1751382100994,9.29563961,147.71,147.67,18.64964886]
[1751382101300,26.0,147.75,147.66,28.08745004]
[1751382101491,9.29563961,147.71,147.66,28.08745004]
[1751382101675,9.29563961,147.71,147.67,9.29563961]
[1751382101871,9.29563961,147.7,147.65,18.64964886]
[1751382102076,9.29563961,147.66,147.61,1.6429]
[1751382102274,9.29563961,147.69,147.61,1.6429]
[1751382102275,9.29563961,147.65,147.61,35.29563961]
[1751382102496,9.29563961,147.65,147.62,18.64964886]
[1751382103390,9.29563961,147.64,147.58,18.64964886]
[1751382103592,9.29563961,147.63,147.6,18.64964886]
[1751382104101,9.29563961,147.61,147.53,1.5186]
[1751382104286,9.29563961,147.6,147.55,9.29563961]
[1751382104489,26.0,147.66,147.59,18.64964886]
[1751382104804,9.29563961,147.65,147.62,18.64964886]
[1751382105196,9.29563961,147.65,147.61,18.64964886]
[1751382105700,26.0,147.67,147.59,18.64964886]
[1751382106013,9.29563961,147.63,147.59,27.94528847]
[1751382106221,9.29563961,147.64,147.59,27.94528847]
[1751382106385,9.29563961,147.63,147.58,35.43780118]
[1751382106701,9.29563961,147.62,147.59,18.64964886]
[1751382107118,9.29563961,147.63,147.59,18.64964886]
[1751382107305,0.1,147.66,147.6,9.43780118]
[1751382107608,0.1,147.66,147.61,9.29563961]
[1751382107609,9.29563961,147.65,147.61,9.29563961]
[1751382107834,9.29563961,147.65,147.6,9.43780118]
[1751382108390,9.29563961,147.64,147.59,18.64964886]
[1751382108716,0.1,147.66,147.61,18.64964886]
[1751382109300,9.29563961,147.64,147.61,18.64964886]
[1751382110017,0.1,147.66,147.61,18.64964886]
[1751382110191,0.1,147.66,147.6,0.14216157]
[1751382110393,9.29563961,147.63,147.61,18.64964886]
[1751382110688,9.29563961,147.62,147.59,18.64964886]
[1751382110889,26.1,147.66,147.59,18.64964886]
[1751382111106,9.29563961,147.62,147.59,18.64964886]
[1751382111587,26.1,147.66,147.59,18.64964886]
[1751382111786,9.29563961,147.63,147.59,18.64964886]
[1751382112010,9.29563961,147.63,147.59,27.94528847]
[1751382112322,9.29563961,147.64,147.61,18.64964886]
[1751382112487,9.29563961,147.64,147.6,0.14216157]
[1751382112683,9.29563961,147.63,147.59,9.43780118]
[1751382112902,26.1,147.66,147.59,9.43780118]
[1751382113105,9.29563961,147.63,147.59,9.43780118]
[1751382113611,9.29563961,147.64,147.6,9.29563961]
[1751382113810,26.1,147.66,147.6,9.29563961]
[1751382114112,9.29563961,147.64,147.6,9.29563961]
[1751382114609,0.1,147.66,147.6,18.64964886]
[1751382114906,9.29563961,147.63,147.6,18.64964886]
[1751382115104,9.29563961,147.61,147.59,18.64964886]
[1751382115300,9.29563961,147.6,147.59,18.64964886]
[1751382115604,26.1,147.66,147.58,27.94528847]
[1751382115801,9.29563961,147.62,147.58,27.94528847]
[1751382116007,26.1,147.66,147.58,27.94528847]
[1751382116196,9.29563961,147.62,147.58,27.94528847]
[1751382116709,9.29563961,147.62,147.58,18.64964886]
[1751382116892,9.29563961,147.62,147.58,27.94528847]
[1751382117291,7.29563961,147.62,147.58,27.94528847]
[1751382117603,9.29563961,147.61,147.58,18.84964886]
[1751382117805,9.29563961,147.59,147.58,0.2]
[1751382120182,34.2049,147.63,147.58,0.2]
[1751382120387,9.29563961,147.59,147.58,0.2]
[1751382120703,34.2049,147.63,147.58,0.2]
[1751382120901,9.29563961,147.59,147.58,0.2]
[1751382121295,34.2049,147.63,147.58,0.2]
[1751382121601,0.1,147.66,147.6,18.64964886]
[1751382121807,9.29563961,147.63,147.6,18.64964886]
[1751382122597,9.29563961,147.64,147.6,18.64964886]
[1751382123189,26.1,147.66,147.6,18.64964886]
[1751382123394,9.29563961,147.63,147.6,18.64964886]
[1751382124798,9.29563961,147.64,147.6,18.64964886]
[1751382125499,11.2,147.65,147.6,9.29563961]
[1751382125697,11.2,147.65,147.6,18.64964886]
[1751382126003,11.2,147.65,147.6,19.07613357]
[1751382126217,0.1,147.66,147.64,9.29563961]
[1751382126510,0.1,147.66,147.6,19.07613357]
[1751382126730,9.29563961,147.65,147.6,0.14216157]
[1751382126895,0.1,147.66,147.59,10.87533961]
[1751382127097,9.29563961,147.63,147.6,18.64964886]
[1751382127316,9.29563961,147.64,147.6,27.94528847]
[1751382127506,0.1,147.66,147.6,18.64964886]
[1751382127820,9.29563961,147.63,147.6,18.64964886]
[1751382128501,0.1,147.66,147.6,27.94528847]
[1751382128714,9.29563961,147.64,147.6,27.94528847]
[1751382130102,5.40555629,147.64,147.6,24.05520515]
[1751382130518,0.1,147.66,147.6,24.05520515]
[1751382130693,5.40555629,147.62,147.6,18.64964886]
[1751382130897,5.40555629,147.61,147.58,0.2]
[1751382131107,11.2,147.65,147.58,0.2]
[1751382131313,5.40555629,147.6,147.58,0.2]
[1751382131508,5.40555629,147.61,147.58,0.2]
[1751382131703,5.40555629,147.59,147.58,0.2]
[1751382132114,5.40555629,147.6,147.58,0.2]
[1751382132321,5.40555629,147.61,147.58,0.2]
[1751382133024,32.6367,147.64,147.58,0.2]
[1751382133205,5.40555629,147.62,147.58,5.60555629]
[1751382133521,5.40555629,147.62,147.59,18.64964886]
[1751382133717,5.40555629,147.63,147.59,5.40555629]
[1751382134025,5.40555629,147.64,147.6,0.2]
[1751382134342,5.40555629,147.63,147.6,0.2]
[1751382134520,5.40555629,147.64,147.6,0.2]
[1751382134825,0.1,147.66,147.6,0.2]
[1751382135020,5.40555629,147.63,147.6,0.2]
[1751382135536,5.40555629,147.61,147.6,0.2]
[1751382135903,9.27409556,147.61,147.6,0.2]
[1751382136846,35.27409556,147.61,147.6,0.2]
[1751382138132,26.0,147.61,147.6,0.2]
[1751382138336,35.27409556,147.61,147.6,0.2]
[1751382139432,9.27409556,147.61,147.6,0.2]
[1751382139825,11.2,147.62,147.6,0.2]
[1751382140027,9.27409556,147.61,147.6,0.2]
[1751382141835,20.47409556,147.61,147.6,0.2]
[1751382143139,11.2,147.61,147.6,0.2]
[1751382143337,20.47409556,147.61,147.6,0.2]
[1751382144236,44.54819112,147.61,147.6,0.2]
[1751382144438,44.54819112,147.61,147.58,0.2]
[1751382144439,26.0,147.59,147.58,0.2]
[1751382144625,35.27409556,147.59,147.58,0.2]
[1751382146018,35.27409556,147.59,147.54,0.2]
[1751382146019,0.42648471,147.57,147.54,0.2]
[1751382146232,9.27409556,147.55,147.54,0.2]
[1751382146745,26.0,147.51,147.48,0.2]
[1751382146946,9.27409556,147.49,147.48,0.2]
[1751382149124,26.0,147.51,147.48,0.2]
[1751382149382,9.27409556,147.5,147.48,0.2]
[1751382149930,9.27409556,147.51,147.48,0.2]
[1751382150749,9.27409556,147.49,147.48,0.2]
[1751382154249,26.0,147.53,147.48,0.2]
[1751382154250,9.27409556,147.5,147.48,0.2]
[1751382154564,9.27409556,147.49,147.48,0.2]
[1751382157356,9.27409556,147.5,147.48,0.2]
[1751382157536,20.47409556,147.51,147.48,0.2]
[1751382157736,5.41534275,147.5,147.48,0.2]
[1751382158561,26.0,147.53,147.48,0.2]
[1751382158764,5.41534275,147.49,147.48,0.2]
[1751382160247,10.8306855,147.49,147.48,0.2]
[1751382160757,10.8306855,147.49,147.47,0.2]
[1751382160758,44.5906855,147.49,147.47,0.2]
[1751382161061,16.61534275,147.48,147.47,0.2]
[1751382161954,20.49025961,147.48,147.47,0.2]
[1751382163633,9.29025961,147.48,147.47,0.2]
[1751382164844,9.43242118,147.48,147.47,0.2]
[1751382165064,29.95458275,147.48,147.47,0.2]
[1751382166445,29.81242118,147.48,147.47,0.2]
[1751382166875,36.59300159,147.48,147.47,0.2]
[1751382167171,29.81242118,147.48,147.47,0.2]
[1751382167468,9.57458275,147.48,147.47,0.2]
[1751382167664,26.14216157,147.45,147.44,0.2]
[1751382167878,35.43242118,147.45,147.44,0.2]
[1751382168162,35.29025961,147.45,147.44,0.2]
[1751382169866,35.29025961,147.45,147.42,0.2]
[1751382170090,18.58051922,147.43,147.42,0.2]
[1751382171969,9.29025961,147.43,147.42,0.2]
[1751382172843,30.06484236,147.43,147.42,0.2]
[1751382173266,56.06484236,147.43,147.42,0.2]
[1751382173475,26.28432314,147.41,147.4,0.2]
[1751382173642,9.57458275,147.41,147.4,0.2]
[1751382174255,26.28432314,147.4,147.39,0.2]
[1751382174448,35.57458275,147.4,147.39,0.2]
[1751382174663,11.2,147.39,147.37,0.2]
[1751382174851,20.49025961,147.38,147.37,0.2]
[1751382175846,46.49025961,147.38,147.37,0.2]
[1751382176047,26.0,147.37,147.36,0.2]
[1751382176254,43.03025961,147.37,147.36,0.2]
[1751382176873,43.31458275,147.37,147.36,0.2]
[1751382177251,26.28432314,147.36,147.35,0.2]
[1751382177451,64.25458275,147.36,147.3,0.2]
[1751382177848,9.29025961,147.35,147.3,0.2]
[1751382178479,26.0,147.32,147.3,0.2]
[1751382178653,9.29025961,147.31,147.3,0.2]
[1751382179556,26.0,147.32,147.3,0.2]
[1751382179557,9.29025961,147.32,147.3,0.2]
[1751382179757,11.2,147.35,147.3,0.2]
[1751382179963,9.29025961,147.33,147.3,18.99181043]
[1751382180162,11.2,147.35,147.3,18.99181043]
[1751382180163,9.29025961,147.34,147.31,1.5441]
[1751382180776,11.2,147.38,147.33,0.14216157]
[1751382180974,20.49025961,147.38,147.34,9.29025961]
[1751382181776,11.2,147.41,147.36,27.93990847]
[1751382181976,20.49025961,147.41,147.38,18.64964886]
[1751382182189,7.74,147.46,147.38,18.64964886]
[1751382182190,9.29025961,147.42,147.38,27.93990847]
[1751382182352,9.29025961,147.42,147.37,9.29025961]
[1751382182556,9.29025961,147.41,147.38,18.64964886]
[1751382183663,9.29025961,147.42,147.38,9.29025961]
[1751382183869,7.74,147.46,147.4,18.64964886]
[1751382184065,9.29025961,147.43,147.4,18.64964886]
[1751382184767,7.74,147.46,147.4,18.64964886]
[1751382184977,9.29025961,147.44,147.4,9.29025961]
[1751382185356,9.29025961,147.45,147.4,9.29025961]
[1751382185783,9.29025961,147.42,147.39,18.64964886]
[1751382186559,33.74,147.46,147.39,18.64964886]
[1751382186764,9.29025961,147.43,147.39,18.64964886]
[1751382187179,9.29025961,147.43,147.4,0.14216157]
[1751382187478,9.29025961,147.44,147.4,0.14216157]
[1751382187663,9.29025961,147.43,147.4,0.14216157]
[1751382187864,33.74,147.46,147.4,0.14216157]
[1751382188055,9.29025961,147.44,147.4,9.43242118]
[1751382188256,17.03025961,147.46,147.42,9.43242118]
[1751382188460,9.29025961,147.45,147.42,18.79181043]
[1751382189188,9.29025961,147.45,147.42,0.14216157]
[1751382189362,9.29025961,147.46,147.42,18.79181043]
[1751382189682,9.29025961,147.47,147.42,28.08207004]
[1751382189884,7.74,147.5,147.42,28.08207004]
[1751382190099,9.29025961,147.52,147.47,9.29025961]
[1751382190261,9.29025961,147.53,147.49,18.64964886]
[1751382190459,9.29025961,147.52,147.49,18.64964886]
[1751382191289,0.1,147.54,147.47,18.79181043]
[1751382191469,9.29025961,147.51,147.47,28.08207004]
[1751382191667,9.29025961,147.51,147.47,18.64964886]
[1751382192191,9.29025961,147.5,147.47,18.64964886]
[1751382192483,9.29025961,147.48,147.46,1.5233]
[1751382192785,9.29025961,147.49,147.46,1.5233]
[1751382192982,9.29025961,147.47,147.45,18.64964886]
[1751382193177,9.29025961,147.46,147.44,18.64964886]
[1751382194185,9.29025961,147.46,147.43,6.0345]
[1751382194576,9.29025961,147.46,147.43,18.64964886]
[1751382194764,9.29025961,147.45,147.43,18.64964886]
[1751382195382,37.2,147.5,147.43,18.64964886]
[1751382195583,9.29025961,147.46,147.43,18.64964886]
[1751382197291,9.29025961,147.44,147.42,1.6157]
[1751382197494,9.29025961,147.45,147.42,1.6157]
[1751382197674,9.29025961,147.46,147.42,1.6157]
[1751382197999,9.29025961,147.45,147.42,1.6157]
[1751382198712,9.29025961,147.46,147.43,18.64964886]
[1751382199612,9.29025961,147.47,147.43,18.64964886]
[1751382199984,9.29025961,147.46,147.43,18.64964886]
[1751382200380,9.29025961,147.45,147.43,18.64964886]
[1751382200580,9.29025961,147.46,147.43,18.64964886]
[1751382201506,9.29025961,147.47,147.43,18.64964886]
[1751382202207,9.29025961,147.46,147.43,18.64964886]
[1751382202507,9.49025961,147.45,147.43,18.64964886]
[1751382202703,0.2,147.45,147.43,18.64964886]
[1751382202903,9.49025961,147.45,147.42,1.6157]
[1751382203209,9.29025961,147.44,147.4,24.70934886]
[1751382203406,11.4,147.45,147.4,18.79181043]
[1751382203581,9.29025961,147.42,147.4,18.64964886]
[1751382203785,9.29025961,147.42,147.39,18.64964886]
[1751382204001,9.29025961,147.43,147.39,27.93990847]
[1751382204419,9.29025961,147.42,147.39,18.64964886]
[1751382205630,9.29025961,147.43,147.39,27.93990847]
[1751382206193,11.2,147.44,147.4,9.43242118]
[1751382206396,11.2,147.44,147.42,18.64964886]
[1751382207204,11.2,147.44,147.4,9.71674432]
[1751382207404,11.2,147.44,147.42,18.64964886]
[1751382207602,0.2,147.45,147.42,18.64964886]
[1751382207915,9.29025961,147.44,147.4,9.71674432]
[1751382208909,9.29025961,147.42,147.39,18.64964886]
[1751382209408,9.29025961,147.43,147.39,27.93990847]
[1751382210709,0.2,147.45,147.39,18.64964886]
[1751382210889,9.29025961,147.42,147.39,18.64964886]
[1751382211092,9.29025961,147.43,147.39,18.64964886]
[1751382211291,9.29025961,147.43,147.39,27.93990847]
[1751382212221,26.0,147.43,147.34,1.6326]
[1751382212518,9.29025961,147.41,147.37,9.43242118]
[1751382212687,11.2,147.44,147.39,18.64964886]
[1751382212688,9.29025961,147.42,147.39,18.64964886]
[1751382213294,9.29025961,147.42,147.37,9.43242118]
[1751382213613,9.29025961,147.41,147.38,18.64964886]
[1751382214521,11.2,147.44,147.37,18.79181043]
[1751382214692,9.29025961,147.39,147.34,1.6326]
[1751382214890,9.29025961,147.42,147.35,18.79181043]
[1751382215105,9.29025961,147.42,147.35,18.64964886]
[1751382216211,9.29025961,147.39,147.35,18.64964886]
[1751382216410,9.29025961,147.4,147.37,18.64964886]
[1751382217513,9.29025961,147.39,147.37,18.64964886]
[1751382218911,11.2,147.42,147.37,18.64964886]
[1751382219094,9.29025961,147.39,147.35,0.14216157]
[1751382219303,9.29025961,147.38,147.35,18.79181043]
[1751382220321,11.2,147.4,147.36,0.14216157]
[1751382220518,0.2,147.45,147.36,0.14216157]
[1751382220519,0.2,147.45,147.4,18.64964886]
[1751382220817,0.2,147.45,147.43,9.29025961]
[1751382221020,0.2,147.45,147.44,27.93990847]
[1751382222317,0.2,147.45,147.44,9.29025961]
[1751382224698,0.2,147.45,147.44,9.71674432]
[1751382227602,0.2,147.45,147.44,16.17164432]
[1751382227798,0.2,147.45,147.44,61.49953517]
[1751382230011,0.2,147.45,147.44,18.933972]
[1751382230217,0.2,147.45,147.44,27.93990847]
[1751382230629,0.2,147.45,147.44,53.93990847]
[1751382230807,0.2,147.45,147.44,54.22423161]
[1751382231012,0.2,147.45,147.44,54.36639318]
[1751382232033,0.2,147.45,147.44,82.96639318]
[1751382235914,0.2,147.45,147.44,79.09072923]
[1751382238335,0.2,147.45,147.44,73.67613357]
[1751382238536,0.2,147.45,147.44,18.64964886]
[1751382239317,0.2,147.45,147.44,24.06424452]
[1751382239731,0.2,147.45,147.44,18.64964886]
[1751382240326,0.2,147.45,147.42,5.41459566]
[1751382240528,0.2,147.45,147.43,18.64964886]
[1751382241244,5.61459566,147.45,147.42,18.64964886]
[1751382241641,0.2,147.45,147.42,24.06424452]
[1751382242143,0.2,147.45,147.39,18.64964886]
[1751382242144,5.41459566,147.44,147.39,18.64964886]
[1751382242352,5.41459566,147.44,147.4,0.14216157]
[1751382242645,5.41459566,147.44,147.41,18.64964886]
[1751382245032,0.2,147.45,147.4,0.14216157]
[1751382245221,0.2,147.45,147.42,5.41459566]
[1751382245427,0.2,147.45,147.43,0.14216157]
[1751382249038,0.2,147.45,147.39,47.513972]
[1751382249039,5.41459566,147.44,147.39,18.64964886]
[1751382249248,5.41459566,147.44,147.41,18.64964886]
[1751382249559,0.2,147.45,147.43,5.55675723]
[1751382249733,0.2,147.45,147.44,24.49072923]
[1751382251926,0.2,147.45,147.44,18.79181043]
[1751382252241,0.2,147.45,147.44,28.07544288]
[1751382254344,0.2,147.45,147.44,18.79181043]
[1751382254743,0.2,147.45,147.42,18.64964886]
[1751382254964,0.2,147.45,147.44,18.64964886]
[1751382255152,0.2,147.45,147.44,9.71011716]
[1751382256171,0.2,147.45,147.44,28.35976602]
[1751382256330,0.2,147.45,147.44,19.07613357]
[1751382256534,0.2,147.45,147.44,28.35976602]
[1751382260554,0.2,147.45,147.44,18.79181043]
[1751382260852,0.2,147.45,147.44,28.07544288]
[1751382261244,0.2,147.45,147.44,27.93328131]
[1751382261441,0.2,147.45,147.44,28.07544288]
[1751382263859,0.2,147.45,147.44,28.35976602]
[1751382265540,0.2,147.45,147.44,19.07613357]
[1751382265763,0.2,147.45,147.44,28.35976602]
[1751382266668,0.2,147.45,147.44,58.47676602]
[1751382266847,0.2,147.51,147.47,26.0]
[1751382267044,0.2,147.51,147.5,28.35976602]
[1751382268358,0.2,147.51,147.5,18.79181043]
[1751382268569,0.2,147.51,147.49,18.64964886]
[1751382269060,0.2,147.51,147.48,27.93328131]
[1751382269456,0.2,147.51,147.48,18.64964886]
[1751382269839,0.2,147.51,147.47,9.42579402]
[1751382270040,9.48363245,147.51,147.47,0.14216157]
[1751382270353,9.48363245,147.51,147.46,18.64964886]
[1751382270354,9.28363245,147.49,147.46,18.64964886]
[1751382270754,9.28363245,147.5,147.46,9.28363245]
[1751382271755,9.28363245,147.5,147.46,5.55775946]
[1751382271756,5.41559789,147.5,147.46,5.55775946]
[1751382272072,5.41559789,147.49,147.46,18.79181043]
[1751382273364,0.2,147.51,147.47,5.41559789]
[1751382273571,5.61559789,147.51,147.46,0.14216157]
[1751382273757,5.61559789,147.51,147.47,5.41559789]
[1751382273960,0.2,147.51,147.48,5.41559789]
[1751382274167,0.2,147.51,147.49,5.41559789]
[1751382275268,0.2,147.51,147.46,18.79181043]
[1751382275472,5.61559789,147.51,147.47,5.41559789]
[1751382275673,0.2,147.51,147.47,5.41559789]
[1751382276266,5.61559789,147.51,147.47,5.41559789]
[1751382276462,0.2,147.51,147.48,5.41559789]
[1751382276668,0.2,147.51,147.49,5.41559789]
[1751382276877,0.2,147.51,147.47,0.28432314]
[1751382277058,0.2,147.51,147.49,5.41559789]
[1751382277659,0.2,147.51,147.5,5.41559789]
[1751382277966,0.2,147.51,147.5,24.20740832]
[1751382278355,0.2,147.51,147.5,24.49173146]
[1751382279655,0.2,147.51,147.5,53.01173146]
[1751382279974,0.2,147.51,147.5,56.45763877]
[1751382281964,0.2,147.53,147.52,44.64964886]
[1751382282276,0.2,147.53,147.52,56.68077233]
[1751382282478,0.2,147.53,147.52,47.40990775]
[1751382282783,0.2,147.53,147.52,56.68077233]
[1751382282987,0.1,147.54,147.53,19.07613357]
[1751382283288,0.1,147.57,147.56,45.07613357]
[1751382283488,0.1,147.57,147.56,82.86699815]
[1751382287085,0.2,147.58,147.57,19.07613357]
[1751382287387,0.1,147.62,147.59,45.07613357]
[1751382287588,0.1,147.62,147.59,83.52455082]
[1751382288289,0.1,147.62,147.6,19.07613357]
[1751382288492,0.1,147.62,147.61,82.84699815]
[1751382288691,0.1,147.62,147.61,83.52445902]
[1751382289263,0.1,147.62,147.61,18.64964886]
[1751382289675,0.1,147.62,147.58,26.0]
[1751382289868,0.1,147.62,147.59,18.64964886]
[1751382289869,9.37086458,147.62,147.59,18.64964886]
[1751382290080,0.1,147.62,147.59,27.92051344]
[1751382290286,0.1,147.62,147.6,9.27086458]
[1751382290589,0.1,147.62,147.61,0.14216157]
[1751382291368,0.1,147.62,147.61,28.34699815]
[1751382292022,0.1,147.62,147.61,56.88699815]
[1751382294668,0.1,147.62,147.61,58.51029815]
[1751382295106,0.1,147.62,147.61,66.15029815]
[1751382295783,0.1,147.62,147.61,56.87943357]
[1751382295975,0.1,147.62,147.61,66.15029815]
[1751382297774,0.1,147.62,147.61,37.61029815]
[1751382297997,0.1,147.62,147.61,66.15029815]
[1751382299074,0.1,147.62,147.61,37.61029815]
[1751382299290,0.1,147.62,147.61,66.11029815]